[Event "45th FIDE Olympiad 2024"]
[Site "Budapest"]
[Date "2024.09.13"]
[Round "3.26"]
[White "Bluebaum, Matthias"]
[Black "Pultinevicius, Paulius"]
[Result "1/2-1/2"]
[ECO "D35"]
[WhiteElo "2640"]
[BlackElo "2587"]
[Annotator "TA"]
[PlyCount "118"]
[EventDate "2024.09.05"]
[EventType "team-tourn"]
[EventCountry "HUN"]
[SourceTitle "playchess.com"]
[Source "ChessBase"]
[SourceQuality "1"]
[WhiteTeam "Germany"]
[BlackTeam "Lithuania"]
[WhiteTeamCountry "GER"]
[BlackTeamCountry "LTU"]
[TimeControl "40/5400+30:1800+30"]

{[%evp 15,118,11,13,15,18,13,15,8,9,23,11,16,20,0,14,7,0,11,52,36,51,50,28,37,50,55,37,38,36,47,56,30,45,33,43,20,7,0,0,0,0,0,0,0,0,0,0,0,0,0,16,0,0,0,0,-8,-8,-11,-13,-4,-27,-58,-54,-44,-29,-41,-33,-109,-103,-96,-19,-22,-20,-21,-13,-14,-18,-19,-14,-14,0,0,0,0,0,0,0,0,0,0,0,0,0,0,0,0,0,0,0,0,0,0,0,0,0]} 1. d4 {[%emt 0:00:07]} Nf6 {[%emt 0:00:05]} 2. c4 {[%emt 0:00:16]} e6 {[%emt 0:00:13]} 3. Nc3 {[%emt 0:00:07]} d5 {[%emt 0:00:05]} 4. cxd5 {[%emt 0:00:04]} exd5 {[%emt 0:00:05]} 5. Bg5 {[%emt 0:00:08]} c6 {[%emt 0:00:05]} 6. e3 {[%emt 0:00:09]} h6 {[%emt 0:00:08]} 7. Bh4 {[%emt 0:00:06]} Be7 {[%emt 0:00:05]} 8. Bd3 {[%emt 0:00:04]} O-O {[%emt 0:00:07]} 9. Nge2 {[%emt 0:00:08]} Re8 {[%emt 0:00:21]} 10. O-O {[%emt 0:00:08]} Nbd7 {[%emt 0:00:04]} 11. f3 {[%emt 0:00:33]} b5 {[%emt 0:01:44]} 12. Rc1 {[%emt 0:00:19]} Bb7 {[%emt 0:01:51]} 13. Qd2 {[%emt 0:01:44]} a6 {[%emt 0:00:27]} 14. Bf5 {[%emt 0:01:47]} g6 {[%emt 0:24:29]} 15. Bh3 {[%emt 0:03:17]} Nb6 {[%emt 0:01:35]} 16. b3 {[%emt 0:02:02] Dodges Nc4} ({Much weaker is} 16. e4 Nxe4 17. Bxe7 Nxd2 $17) 16... Nh7 {[%emt 0:02:40]} 17. Bxe7 {[%emt 0:06:27]} Qxe7 {[%emt 0:00:17]} 18. Nd1 $1 {[%emt 0:00:20]} Ng5 {[%emt 0:00:47]} 19. Nf4 $1 {[%emt 0:00:12]} a5 {[%emt 0:01:45]} 20. Re1 {[%emt 0:06:51]} a4 {[%emt 0:03:58]} 21. Nf2 {[%emt 0:02:00]} axb3 {[%emt 0:03:29]} 22. axb3 {[%emt 0:00:02]} Ra3 {[%emt 0:00:16]} 23. Rb1 {[%emt 0:06:34]} Rea8 {[%emt 0:05:15]} 24. N4d3 {[%emt 0:04:41]} Ra2 {[%emt 0:03:40]} 25. Rb2 {[%emt 0:03:33]} Ra1 {[%emt 0:07:12]} 26. Nc5 {[%emt 0:03:16]} R8a3 {[%emt 0:06:30][%cal Ob6c4] [#] White must now prevent ...Nc4!} 27. Reb1 {[%emt 0:06:38]} R3a2 {[%emt 0:02:27]} 28. Qe1 {[%emt 0:07:56]} Rxb1 {[%emt 0:01:04]} 29. Rxb1 {[%emt 0:00:14]} h5 {[%emt 0:02:05]} 30. e4 {[%emt 0:05:13]} dxe4 {[%emt 0:02:34]} (30... Nxh3+ {simplifies} 31. Nxh3 dxe4 32. Qxe4 Qxe4 33. fxe4 Bc8) 31. fxe4 {[%emt 0:02:55]} Nxh3+ {[%emt 0:08:07]} 32. Nxh3 {[%emt 0:00:05]} Bc8 {[%emt 0:00:05] [#] ...Bxh3 is the strong threat.} 33. Nf2 {[%emt 0:04:15]} Qg5 {[%emt 0:09:26]} 34. Qc3 {[%emt 0:02:22]} b4 $40 {[%emt 0:05:25][%mdl 128] Black has some attack.} 35. Qg3 {[%emt 0:03:35]} (35. Qxb4 $2 {is the wrong capture.} Bh3 36. g3 Qe3 $19) 35... Qd2 {[%emt 0:01:32]} 36. Rd1 {[%emt 0:04:12]} Qb2 {[%emt 0:00:12]} 37. h3 {[%emt 0:04:44]} Nd7 {[%emt 0:02:31]} 38. Na4 {[%emt 0:04:01] A dynamic duo of knights.} Qe2 {[%emt 0:00:54]} 39. Qf3 $1 {[%emt 0:02:06]} Qxf3 {[%emt 0:02:06]} (39... Ba6 {seems wilder.} 40. Qf4 Bc4 41. Nc5 Nxc5 42. dxc5 Be6) 40. gxf3 {[%emt 0:00:05]} Ba6 {[%emt 0:04:13]} 41. Nd3 {[%emt 0:32:48]} ({Better is} 41. Rc1 $15) 41... Bxd3 $17 {[%emt 0:04:28]} 42. Rxd3 {[%emt 0:00:00][%mdl 4096] Endgame. KRN-KRN} h4 {[%emt 0:01:35]} (42... Kf8 $17 43. Nc5 Ke7) 43. Nc5 $1 $11 {[%emt 0:00:00] The position is equal.} Nxc5 {[%emt 0:05:37]} 44. dxc5 {[%emt 0:00:00] KR-KR} Rb2 {[%emt 0:00:26]} 45. Rd6 {[%emt 0:00:00]} Rxb3 {[%emt 0:01:03] And now ...Rb1+ would win.} 46. Kf2 {[%emt 0:00:00]} Rc3 {[%emt 0:05:18]} 47. Rxc6 {[%emt 0:00:00]} b3 {[%emt 0:00:12]} (47... Kg7 {simplifies} 48. Rb6 Rxc5 49. Rxb4 Rc2+) 48. Rb6 {[%emt 0:00:00]} Kf8 {[%emt 0:00:22][%cal Of8e7]} (48... Rxc5 49. Rxb3 Rc2+ 50. Kf1) 49. Rb7 {[%emt 0:00:00]} Ke8 {[%emt 0:01:14][%cal Of7f6]} (49... Rxc5 50. Rxb3 Rc2+ 51. Ke3) 50. c6 {[%emt 0:00:00]} Kd8 {[%emt 0:01:06]} 51. e5 {[%emt 0:00:00]} g5 {[%emt 0:01:35]} 52. Rxf7 {[%emt 0:00:00]} Rxc6 {[%emt 0:00:56]} 53. Rb7 {[%emt 0:00:00] Inhibits Rb6.} Rc3 {[%emt 0:04:19]} 54. e6 {[%emt 0:00:00]} Ke8 {[%emt 0:00:04]} 55. Ke2 {[%emt 0:00:00]} g4 {[%emt 0:07:10]} 56. fxg4 {[%emt 0:00:00]} Rxh3 {[%emt 0:00:06][%cal Ob3b2] ( -> ...b2!)} 57. Kf2 {[%emt 0:00:00]} Rg3 {[%emt 0:01:56]} 58. g5 {[%emt 0:00:00]} Rxg5 {[%emt 0:00:10]} 59. Rxb3 {[%emt 0:00:00]} Ke7 {[%emt 0:00:05] Weighted Error Value: White=0.05 (flawless) /Black=0.05 (flawless) .  Mistake:       	White=1     	Black=1      Inaccurate:     	White=2     	Black=1      OK:         	White=22    	Black=23     Best:        	White=1     	Black=1      Strong:       	White=4     	---} 1/2-1/2

[Event "45th FIDE Olympiad 2024"]
[Site "Budapest"]
[Date "2024.09.13"]
[Round "3.26"]
[White "James, Justin"]
[Black "Ormsby, Alan"]
[Result "0-1"]
[ECO "A41"]
[WhiteElo "1745"]
[BlackElo "1914"]
[Annotator "NA RC"]
[PlyCount "136"]
[EventDate "2024.09.05"]
[EventType "team-tourn"]
[EventCountry "HUN"]
[SourceTitle "playchess.com"]
[Source "ChessBase"]
[SourceQuality "1"]
[WhiteTeam "Saint Lucia"]
[BlackTeam "Isle of Man"]
[BlackTeamCountry "IOM"]
[TimeControl "40/5400+30:1800+30"]

1. e4 g6 2. d4 Bg7 3. Nf3 d6 4. c4 a6 5. Nc3 e6 6. Be3 b6 7. Qd2 Nd7 8. h3 h6 9. Be2 Bb7 10. g4 Ne7 11. Rg1 c5 12. d5 e5 13. Nh2 g5 14. Rg2 Ng6 15. Rg1 Nf4 16. Bf1 Nf8 17. Nf3 N8g6 18. Ne2 Nxe2 19. Bxe2 Nf4 20. Bf1 Bc8 21. O-O-O Bd7 22. Rg3 Bf6 23. Ne1 b5 24. Nc2 O-O 25. Ne1 bxc4 26. Bxc4 Bb5 27. Qc2 Bxc4 28. Qxc4 Qd7 29. Rd2 Rfb8 30. Nc2 a5 31. Na3 a4 32. Kd1 Bd8 33. Bxf4 exf4 34. Rf3 Bf6 35. Qe2 Be5 36. Ke1 Rb4 37. Nc4 f6 38. Nxe5 fxe5 39. Rc3 Qb7 40. Rc4 Rb8 41. Rdc2 Kf7 42. Qd2 Ke7 43. Rxb4 Qxb4 44. Qxb4 Rxb4 45. f3 Kd7 46. Kd2 Kc7 47. Ke2 Kb6 48. Kd2 Kb5 49. Kc1 Rd4 50. Rc3 Kb4 51. Kc2 Rc4 52. a3+ Kb5 53. Kd2 Rd4+ 54. Kc1 c4 55. Kc2 Kc5 56. Kc1 Rd3 57. Kc2 Kd4 58. Rxd3+ cxd3+ 59. Kd2 Kc4 60. Kd1 Kb3 61. Kd2 Kxb2 62. Kxd3 Kxa3 63. Kc3 Ka2 64. Kc2 a3 65. Kc1 Kb3 66. Kb1 Kc3 67. Ka2 Kd3 68. Kxa3 Ke3 0-1

[Event "45th FIDE Olympiad 2024"]
[Site "Budapest"]
[Date "2024.09.13"]
[Round "3.27"]
[White "Kazakouski, Valery"]
[Black "Donchenko, Alexander"]
[Result "1-0"]
[ECO "E15"]
[WhiteElo "2577"]
[BlackElo "2638"]
[Annotator "RC"]
[PlyCount "147"]
[EventDate "2024.09.05"]
[EventType "team-tourn"]
[EventCountry "HUN"]
[SourceTitle "playchess.com"]
[Source "ChessBase"]
[SourceQuality "1"]
[WhiteTeam "Lithuania"]
[BlackTeam "Germany"]
[WhiteTeamCountry "LTU"]
[BlackTeamCountry "GER"]
[TimeControl "40/5400+30:1800+30"]

1. d4 {[%emt 0:00:08]} Nf6 {[%emt 0:00:07]} 2. c4 {[%emt 0:00:09]} e6 {[%emt 0:00:06]} 3. Nf3 {[%emt 0:00:11]} b6 {[%emt 0:00:18]} 4. g3 {[%emt 0:00:28]} Ba6 {[%emt 0:00:12]} 5. b3 {[%emt 0:00:29]} Bb4+ {[%emt 0:00:15]} 6. Bd2 {[%emt 0:00:18]} Be7 {[%emt 0:00:07]} 7. Nc3 {[%emt 0:00:52]} d5 {[%emt 0:00:24]} 8. cxd5 {[%emt 0:02:19]} exd5 {[%emt 0:00:12]} 9. Bg2 {[%emt 0:00:38]} O-O {[%emt 0:00:10]} 10. O-O {[%emt 0:00:14]} Nbd7 {[%emt 0:00:21]} 11. Bf4 {[%emt 0:02:04]} Re8 {[%emt 0:13:56]} 12. Ne5 {[%emt 0:06:16]} Bb7 {[%emt 0:02:00]} 13. Rc1 {[%emt 0:07:58]} Nf8 {[%emt 0:00:54]} 14. Bg5 {[%emt 0:06:51]} Ne6 {[%emt 0:05:11]} 15. Bxf6 {[%emt 0:02:47]} Bxf6 {[%emt 0:00:07]} 16. e3 {[%emt 0:01:22]} c5 {[%emt 0:08:12]} 17. f4 {[%emt 0:06:04]} Rc8 {[%emt 0:05:49]} 18. Qd3 {[%emt 0:05:04]} a6 {[%emt 0:08:32]} 19. g4 {[%emt 0:09:23]} cxd4 {[%emt 0:15:47]} 20. exd4 {[%emt 0:01:37]} Be7 {[%emt 0:01:06]} 21. Qf5 {[%emt 0:12:15]} Rf8 {[%emt 0:02:09]} 22. Ne2 {[%emt 0:08:11]} Ba3 {[%emt 0:06:20]} 23. Rxc8 {[%emt 0:03:33]} Qxc8 {[%emt 0:00:30]} 24. g5 {[%emt 0:03:52]} a5 {[%emt 0:02:44]} 25. Rd1 {[%emt 0:04:23]} Ba6 {[%emt 0:09:02]} 26. Ng3 {[%emt 0:01:30]} g6 {[%emt 0:07:34]} 27. Qg4 {[%emt 0:02:12]} Qc3 {[%emt 0:03:29]} 28. Nd7 {[%emt 0:05:00]} Qe3+ {[%emt 0:04:23]} 29. Kh1 {[%emt 0:00:37]} Qxf4 {[%emt 0:00:35]} 30. Qxf4 {[%emt 0:00:50]} Nxf4 {[%emt 0:00:02]} 31. Nxf8 {[%emt 0:00:07]} Kxf8 {[%emt 0:00:06]} 32. Bf1 {[%emt 0:02:09]} Bc8 {[%emt 0:00:35]} 33. Bb5 {[%emt 0:02:38]} Nh3 {[%emt 0:01:56]} 34. Kg2 {[%emt 0:04:05]} Nxg5 {[%emt 0:01:05]} 35. Bc6 {[%emt 0:00:30]} Bg4 {[%emt 0:02:02]} 36. Re1 {[%emt 0:00:09]} Bh3+ {[%emt 0:00:36]} 37. Kf2 {[%emt 0:00:32]} Be6 {[%emt 0:00:28]} 38. Ne2 {[%emt 0:01:02]} Bd6 {[%emt 0:01:30]} 39. Ke3 {[%emt 0:00:41]} Bxh2 {[%emt 0:00:34]} 40. Nc3 {[%emt 0:00:27]} Bg3 {[%emt 0:00:30]} 41. Rh1 {[%emt 0:03:39]} h5 {[%emt 0:15:37]} 42. Bxd5 {[%emt 0:01:59]} Bd7 {[%emt 0:01:05]} 43. Rf1 {[%emt 0:05:45]} f5 {[%emt 0:03:05]} 44. Ne2 {[%emt 0:01:12]} Bd6 {[%emt 0:00:33]} 45. Rg1 {[%emt 0:02:05]} f4+ {[%emt 0:01:32]} 46. Kd2 {[%emt 0:01:45]} Bg4 {[%emt 0:00:31]} 47. Rf1 {[%emt 0:03:00]} Nh3 {[%emt 0:00:51]} 48. Bg2 {[%emt 0:03:20]} Kg7 {[%emt 0:00:45]} 49. Kd3 {[%emt 0:02:09]} Bc8 {[%emt 0:01:37]} 50. Kd2 {[%emt 0:01:17]} Bg4 {[%emt 0:01:29]} 51. Kd3 {[%emt 0:00:02]} Kh6 {[%emt 0:00:25]} 52. Kd2 {[%emt 0:01:44]} Bc8 {[%emt 0:02:59]} 53. Rh1 {[%emt 0:03:48]} Bb4+ {[%emt 0:02:57]} 54. Nc3 {[%emt 0:01:26]} Ng5 {[%emt 0:00:12]} 55. Rf1 {[%emt 0:00:18]} Ne6 {[%emt 0:00:23]} 56. d5 {[%emt 0:01:12]} Nd4 {[%emt 0:00:20]} 57. Kd3 {[%emt 0:03:34]} f3 {[%emt 0:01:07]} 58. Bxf3 {[%emt 0:00:44]} Ba6+ {[%emt 0:00:41]} 59. Kxd4 {[%emt 0:00:01]} Bxf1 {[%emt 0:01:11]} 60. Ne4 {[%emt 0:00:29]} h4 {[%emt 0:02:41]} 61. d6 {[%emt 0:00:25]} h3 {[%emt 0:00:27]} 62. d7 {[%emt 0:00:16]} Be7 {[%emt 0:00:03]} 63. Nd6 {[%emt 0:00:37]} Kg5 {[%emt 0:00:41]} 64. Ke3 {[%emt 0:00:22]} Kh4 {[%emt 0:00:46]} 65. Kf2 {[%emt 0:01:16]} Ba6 {[%emt 0:00:32]} 66. Nf7 {[%emt 0:00:15]} g5 {[%emt 0:00:32]} 67. Ne5 {[%emt 0:00:44]} Bc5+ {[%emt 0:00:31]} 68. Ke1 {[%emt 0:00:07]} Bb4+ {[%emt 0:00:30]} 69. Kd1 {[%emt 0:00:12]} Be7 {[%emt 0:00:16]} 70. Ng6+ {[%emt 0:00:09]} Kg3 {[%emt 0:00:01]} 71. Nxe7 {[%emt 0:00:08]} Kxf3 {[%emt 0:00:03]} 72. d8=Q {[%emt 0:00:07]} h2 {[%emt 0:00:19]} 73. Qd5+ {[%emt 0:00:29]} Kf2 {[%emt 0:00:02]} 74. Qf5+ {[%emt 0:00:11]} 1-0

[Event "45th FIDE Olympiad 2024"]
[Site "Budapest"]
[Date "2024.09.13"]
[Round "3.27"]
[White "Gumireddy, Sanjay"]
[Black "Elizee, Kaieem"]
[Result "0-1"]
[ECO "B21"]
[WhiteElo "1907"]
[BlackElo "1701"]
[Annotator "NA RC"]
[PlyCount "94"]
[EventDate "2024.09.05"]
[EventType "team-tourn"]
[EventCountry "HUN"]
[SourceTitle "playchess.com"]
[Source "ChessBase"]
[SourceQuality "1"]
[WhiteTeam "Isle of Man"]
[BlackTeam "Saint Lucia"]
[WhiteTeamCountry "IOM"]
[TimeControl "40/5400+30:1800+30"]

1. e4 c5 2. d4 cxd4 3. c3 dxc3 4. Nxc3 e6 5. Nf3 Nc6 6. Bc4 a6 7. O-O Nge7 8. Qe2 b5 9. Bb3 Ng6 10. Be3 Be7 11. Rfd1 O-O 12. Rac1 Bb7 13. a3 Na5 14. Ba2 Rc8 15. Nd4 Nc4 16. Bxc4 bxc4 17. f4 d5 18. e5 Qd7 19. Qg4 Bc5 20. h4 Ne7 21. Nce2 f5 22. Qf3 Ba8 23. Qf2 Qa7 24. Rc3 Bxd4 25. Nxd4 Qd7 26. h5 Nc6 27. Qh4 Nxd4 28. Bxd4 Qd8 29. Qf2 Qe8 30. Rh3 Rf7 31. Rc1 Rfc7 32. Rcc3 Rb7 33. Rcg3 Rcb8 34. Rg5 Rb3 35. Bc3 R3b7 36. Qh4 Qd8 37. Qg3 d4 38. Bb4 d3 39. Qe1 Qd4+ 40. Qf2 Qxf2+ 41. Kxf2 a5 42. Bc3 Rxb2+ 43. Bxb2 Rxb2+ 44. Ke1 Be4 45. Rhg3 g6 46. Re3 c3 47. Rxd3 Bxd3 0-1

[Event "45th FIDE Olympiad 2024"]
[Site "Budapest"]
[Date "2024.09.13"]
[Round "3.28"]
[White "Svane, Frederik"]
[Black "Laurusas, Tomas"]
[Result "1-0"]
[ECO "C43"]
[WhiteElo "2640"]
[BlackElo "2569"]
[Annotator "RC"]
[PlyCount "157"]
[EventDate "2024.09.05"]
[EventType "team-tourn"]
[EventCountry "HUN"]
[SourceTitle "playchess.com"]
[Source "ChessBase"]
[SourceQuality "1"]
[WhiteTeam "Germany"]
[BlackTeam "Lithuania"]
[WhiteTeamCountry "GER"]
[BlackTeamCountry "LTU"]
[TimeControl "40/5400+30:1800+30"]

1. e4 {[%emt 0:00:04]} e5 {[%emt 0:00:32]} 2. Nf3 {[%emt 0:00:09]} Nf6 {[%emt 0:00:07]} 3. d4 {[%emt 0:00:27]} Nxe4 {[%emt 0:00:14]} 4. dxe5 {[%emt 0:00:44]} d5 {[%emt 0:01:11]} 5. Nbd2 {[%emt 0:00:11]} Nc5 {[%emt 0:10:15]} 6. Be2 {[%emt 0:01:04]} Be7 {[%emt 0:01:18]} 7. O-O {[%emt 0:00:12]} O-O {[%emt 0:03:04]} 8. Re1 {[%emt 0:00:57]} Nc6 {[%emt 0:06:16]} 9. Nf1 {[%emt 0:20:39]} Bf5 {[%emt 0:08:33]} 10. c3 {[%emt 0:03:34]} Bg6 {[%emt 0:02:38]} 11. Ng3 {[%emt 0:04:18]} Qd7 {[%emt 0:04:11]} 12. Bf4 {[%emt 0:18:42]} Rad8 {[%emt 0:01:15]} 13. Nd4 {[%emt 0:04:34]} Ne6 {[%emt 0:02:12]} 14. Bg4 {[%emt 0:01:48]} Ncxd4 {[%emt 0:02:38]} 15. cxd4 {[%emt 0:00:02]} c5 {[%emt 0:06:42]} 16. Be3 {[%emt 0:03:24]} cxd4 {[%emt 0:07:31]} 17. Bxd4 {[%emt 0:00:23]} Qb5 {[%emt 0:02:02]} 18. Bxe6 {[%emt 0:04:42]} fxe6 {[%emt 0:00:15]} 19. Qg4 {[%emt 0:02:05]} Qa6 {[%emt 0:16:23]} 20. Rac1 {[%emt 0:03:22]} Rc8 {[%emt 0:00:13]} 21. h4 {[%emt 0:06:57]} Rc6 {[%emt 0:01:10]} 22. Rxc6 {[%emt 0:02:52]} Qxc6 {[%emt 0:01:14]} 23. Re3 {[%emt 0:00:21]} b6 {[%emt 0:04:17]} 24. Rc3 {[%emt 0:00:24]} Qd7 {[%emt 0:00:01]} 25. h5 {[%emt 0:01:32]} Bf5 {[%emt 0:00:31]} 26. Qd1 {[%emt 0:01:51]} Bb4 {[%emt 0:07:27]} 27. Rf3 {[%emt 0:01:09]} Be4 {[%emt 0:02:25]} 28. Rb3 {[%emt 0:04:01]} Be7 {[%emt 0:00:20]} 29. Rc3 {[%emt 0:00:56]} Bb4 {[%emt 0:01:56]} 30. Rb3 {[%emt 0:01:10]} Be7 {[%emt 0:00:02]} 31. Rc3 {[%emt 0:03:31]} Bb4 {[%emt 0:00:25]} 32. Re3 {[%emt 0:00:09]} Bf5 {[%emt 0:02:19]} 33. a3 {[%emt 0:00:14]} Be7 {[%emt 0:00:13]} 34. Rc3 {[%emt 0:01:35]} h6 {[%emt 0:02:59]} 35. Qc1 {[%emt 0:03:29]} Bd8 {[%emt 0:00:35]} 36. Rc6 {[%emt 0:03:25]} Bh7 {[%emt 0:03:49]} 37. Rd6 {[%emt 0:01:48]} Qa4 {[%emt 0:00:01]} 38. b4 {[%emt 0:01:02]} Bh4 {[%emt 0:00:39]} 39. Rxe6 {[%emt 0:01:27]} Bxg3 {[%emt 0:01:11]} 40. fxg3 {[%emt 0:00:06]} Bd3 {[%emt 0:00:46]} 41. Bf2 {[%emt 0:08:04]} Qd7 {[%emt 0:03:31]} 42. Rc6 {[%emt 0:00:27]} Qf5 {[%emt 0:08:02]} 43. Qe1 {[%emt 0:00:15]} Be4 {[%emt 0:08:16]} 44. e6 {[%emt 0:00:20]} Qe5 {[%emt 0:07:26]} 45. Qc1 {[%emt 0:09:55]} Re8 {[%emt 0:02:04]} 46. Qf4 {[%emt 0:02:24]} Qxh5 {[%emt 0:02:05]} 47. g4 {[%emt 0:01:24]} Qg5 {[%emt 0:00:43]} 48. Qxg5 {[%emt 0:05:11]} hxg5 {[%emt 0:00:01]} 49. Rc7 {[%emt 0:00:10]} Rxe6 {[%emt 0:00:46]} 50. Rxa7 {[%emt 0:00:01]} b5 {[%emt 0:01:45]} 51. a4 {[%emt 0:02:11]} bxa4 {[%emt 0:00:16]} 52. b5 {[%emt 0:00:01]} d4 {[%emt 0:00:34]} 53. Bxd4 {[%emt 0:00:01]} Rd6 {[%emt 0:01:02]} 54. Rxa4 {[%emt 0:00:14]} Kf7 {[%emt 0:00:34]} 55. Kf2 {[%emt 0:03:01]} Bb7 {[%emt 0:00:01]} 56. Be3 {[%emt 0:02:14]} Kf6 {[%emt 0:00:38]} 57. Rc4 {[%emt 0:00:39]} Rd5 {[%emt 0:00:15]} 58. b6 {[%emt 0:00:11]} Rb5 {[%emt 0:00:38]} 59. Bd4+ {[%emt 0:02:12]} Ke6 {[%emt 0:00:01]} 60. Rc7 {[%emt 0:00:02]} Bd5 {[%emt 0:00:13]} 61. Rxg7 {[%emt 0:00:15]} Rb4 {[%emt 0:00:27]} 62. Be3 {[%emt 0:01:22]} Rb2+ {[%emt 0:00:35]} 63. Ke1 {[%emt 0:00:01]} Rb1+ {[%emt 0:01:05]} 64. Kd2 {[%emt 0:00:16]} Rb2+ {[%emt 0:00:46]} 65. Kc1 {[%emt 0:00:31]} Rb3 {[%emt 0:00:23]} 66. Bxg5 {[%emt 0:00:54]} Bxg2 {[%emt 0:00:10]} 67. Kc2 {[%emt 0:00:22]} Rb5 {[%emt 0:00:27]} 68. Be3 {[%emt 0:00:21]} Kf6 {[%emt 0:00:26]} 69. Rc7 {[%emt 0:00:39]} Rb4 {[%emt 0:00:19]} 70. g5+ {[%emt 0:00:17]} Kg6 {[%emt 0:00:02]} 71. Kc3 {[%emt 0:00:26]} Rb1 {[%emt 0:00:03]} 72. Rc4 {[%emt 0:00:52]} Bb7 {[%emt 0:00:19]} 73. Rf4 {[%emt 0:00:36]} Rb5 {[%emt 0:00:37]} 74. Rf6+ {[%emt 0:00:05]} Kg7 {[%emt 0:00:17]} 75. Rd6 {[%emt 0:00:13]} Be4 {[%emt 0:00:21]} 76. Bd4+ {[%emt 0:00:28]} Kf8 {[%emt 0:01:31]} 77. g6 {[%emt 0:00:14]} Rg5 {[%emt 0:00:23]} 78. g7+ {[%emt 0:00:15]} Ke7 {[%emt 0:00:12]} 79. Bf6+ {[%emt 0:01:14]} 1-0

[Event "45th FIDE Olympiad 2024"]
[Site "Budapest"]
[Date "2024.09.13"]
[Round "3.28"]
[White "Daniel, Cyrus"]
[Black "Miah, Zahed"]
[Result "1-0"]
[ECO "B12"]
[WhiteElo "1759"]
[BlackElo "1895"]
[Annotator "NA RC"]
[PlyCount "77"]
[EventDate "2024.09.05"]
[EventType "team-tourn"]
[EventCountry "HUN"]
[SourceTitle "playchess.com"]
[Source "ChessBase"]
[SourceQuality "1"]
[WhiteTeam "Saint Lucia"]
[BlackTeam "Isle of Man"]
[BlackTeamCountry "IOM"]
[TimeControl "40/5400+30:1800+30"]

1. e4 c6 2. d4 d5 3. e5 Bf5 4. g4 Bd7 5. Bd3 e6 6. Qe2 c5 7. dxc5 Bxc5 8. Nd2 Nc6 9. Ngf3 Nge7 10. Nb3 Bb6 11. h4 Qc7 12. Bf4 Nb4 13. c3 Nxd3+ 14. Qxd3 a6 15. Nbd4 Nc6 16. Nxc6 bxc6 17. Bg3 c5 18. Nd2 Bb5 19. c4 dxc4 20. Nxc4 Ba5+ 21. Kf1 Rd8 22. Qc2 Rd4 23. b3 O-O 24. Qe2 Rfd8 25. Kg1 Rd2 26. Qe3 R8d3 27. Qg5 Bxc4 28. bxc4 Qb7 29. Kh2 Bc3 30. Rab1 Bb2 31. Qf4 Qd7 32. Qe4 Qc8 33. Rxb2 Rd4 34. Qb1 Rxb2 35. Qxb2 Rxc4 36. Qe2 Ra4 37. Rd1 h6 38. Rd6 c4 39. Qd1 1-0